bitfinex/quotes_ETHUSD_20240928
["timestamp","ask_amount","ask_price","bid_price","bid_amount"]
[1727511681390,0.06563599,2678.2,2678.1,3.73398]
[1727511681687,1.16381506,2678.3,2678.1,3.73399]
[1727511681994,0.0654043,2678.2,2678.1,3.73399]
[1727511683161,1.16381506,2678.3,2678.1,3.73399]
[1727511683360,0.0654043,2678.2,2678.1,3.73399]
[1727511683773,1.16381506,2678.3,2678.1,3.73399]
[1727511683990,0.0654043,2678.2,2678.1,3.73399]
[1727511684655,1.98781506,2678.4,2678.1,3.73399]
[1727511684867,0.06545863,2678.3,2678.1,3.73399]
[1727511685186,0.06545863,2678.3,2678.0,3.73412]
[1727511685187,0.06545863,2678.3,2678.0,7.46817]
[1727511685769,0.06545863,2678.3,2678.1,3.73394]
[1727511687060,0.06545863,2678.3,2678.2,3.73385]
[1727511687902,0.06545863,2678.3,2678.0,7.46806]
[1727511688063,0.06545863,2678.3,2678.1,3.73398]
[1727511688463,0.06545863,2678.3,2678.2,3.73385]
[1727511691615,0.06545863,2678.3,2678.1,7.46789]
[1727511691905,0.06545863,2678.3,2678.1,3.73391]
[1727511692624,0.06545863,2678.3,2678.1,7.46782]
[1727511693730,0.06545863,2678.3,2678.1,7.46781]
[1727511694406,0.06545863,2678.3,2678.1,3.7339]
[1727511694724,0.06545863,2678.3,2678.2,3.73385]
[1727511696130,0.06545863,2678.3,2678.1,3.7339]
[1727511696429,0.06545863,2678.3,2678.1,7.46781]
[1727511697116,0.06545863,2678.3,2678.2,3.73385]
[1727511697793,3.56362777,2678.7,2678.4,3.73356]
[1727511697995,0.06417627,2678.6,2678.4,3.73356]
[1727511698221,1.22799133,2678.6,2678.2,3.73385]
[1727511698394,0.06417627,2678.6,2678.2,3.73375]
[1727511698605,1.22799133,2678.6,2678.2,3.73375]
[1727511698821,1.22799133,2678.6,2678.3,3.73363]
[1727511699137,0.06417627,2678.6,2678.3,3.73363]
[1727511699293,1.22799133,2678.6,2678.3,3.73363]
[1727511699612,0.06417627,2678.6,2678.3,3.73363]
[1727511700138,1.22799133,2678.6,2678.3,3.73363]
[1727511700447,0.06417627,2678.6,2678.3,3.73363]
[1727511702300,0.06417627,2678.6,2678.2,7.46751]
[1727511702498,1.56861271,2678.5,2678.2,3.73375]
[1727511702912,0.06406764,2678.4,2678.3,3.73371]
[1727511703125,0.06406764,2678.4,2678.2,3.73375]
[1727511704043,0.06406764,2678.4,2678.0,3.73406]
[1727511704044,1.56861271,2678.3,2678.0,3.73406]
[1727511704347,0.06396947,2678.2,2678.1,3.73397]
[1727511704640,2.39981271,2678.3,2678.1,3.73397]
[1727511704843,0.06396947,2678.2,2678.1,3.73397]
[1727511705039,2.39981271,2678.3,2678.1,3.73397]
[1727511705215,0.06175281,2678.2,2678.1,3.73397]
[1727511705400,2.39981271,2678.3,2678.1,3.73397]
[1727511705606,0.06169525,2678.2,2678.1,3.73397]
[1727511705806,2.39981271,2678.3,2678.1,3.73397]
[1727511706147,0.06169525,2678.2,2678.1,3.73397]
[1727511706506,2.39981271,2678.3,2678.1,3.73397]
[1727511706705,0.06169525,2678.2,2678.0,3.73406]
[1727511707049,3.56362777,2678.3,2678.0,3.73406]
[1727511707381,1.56861271,2678.1,2677.8,10.46865]
[1727511707709,0.0615866,2678.0,2677.8,10.46865]
[1727511707938,0.0615866,2678.0,2677.9,3.73426]
[1727511709253,0.0615866,2678.0,2677.8,6.73432]
[1727511709493,1.56861271,2677.9,2677.7,3.73453]
[1727511710021,0.06121205,2677.8,2677.7,3.73453]
[1727511712143,1.22540166,2678.0,2677.7,3.73453]
[1727511712436,1.22540166,2678.0,2677.8,3.73437]
[1727511713415,1.16381506,2677.9,2677.8,3.73437]
[1727511713753,1.22494854,2677.9,2677.8,3.73437]
[1727511715435,1.22350476,2677.9,2677.8,3.73437]
[1727511715757,1.22354989,2677.9,2677.8,3.73437]
[1727511715964,1.22354989,2677.9,2677.8,4.56597]
[1727511716860,1.22414627,2677.9,2677.8,4.56597]
[1727511717420,1.61367692,2677.9,2677.8,4.56597]
[1727511718450,2.00071761,2677.9,2677.8,4.56597]
[1727511719565,0.06113348,2677.9,2677.8,4.56597]
[1727511721265,0.06113348,2677.9,2677.8,4.64064962]
[1727511721559,0.06113348,2677.9,2677.8,4.56597]
[1727511722962,0.06113348,2677.9,2677.8,7.56597]
[1727511723272,0.06113348,2677.9,2677.8,8.69602]
[1727511723882,1.61693955,2677.9,2677.8,8.69602]
[1727511724082,1.22804325,2677.9,2677.8,8.69602]
[1727511724437,0.06113348,2677.9,2677.8,8.69602]
[1727511731148,0.06113348,2677.9,2677.8,5.69602]
[1727511731349,1.22804325,2677.9,2677.8,4.64064257]
[1727511731545,1.22804325,2677.9,2677.8,4.56597]
[1727511731880,0.06113348,2677.9,2677.8,4.56597]
[1727511732272,1.61693955,2677.9,2677.8,4.56597]
[1727511732483,1.61693955,2677.9,2677.8,3.73437]
[1727511732800,0.06113348,2677.9,2677.8,3.73437]
[1727511732948,1.61556081,2677.9,2677.8,3.73437]
[1727511733148,0.06113348,2677.9,2677.8,4.50027]
[1727511733379,0.06113348,2677.9,2677.8,5.56275504]
[1727511733380,1.22702679,2677.9,2677.8,5.56275504]
[1727511733585,1.16589331,2677.9,2677.8,5.56275504]
[1727511733794,1.16589331,2677.9,2677.8,8.56275504]
[1727511733795,1.22123407,2677.9,2677.8,8.56275504]
[1727511734093,1.22123407,2677.9,2677.8,8.48807941]
[1727511735086,0.05534076,2677.9,2677.8,8.48807941]
[1727511742038,0.05534076,2677.9,2677.8,7.50027]
[1727511742247,0.05534076,2677.9,2677.8,6.73437]
[1727511742248,1.22123407,2677.9,2677.8,6.73437]
[1727511745604,0.05534076,2677.9,2677.8,6.73437]
[1727511745806,1.60986517,2677.9,2677.8,6.73437]
[1727511746427,0.05534076,2677.9,2677.8,6.73437]
[1727511747249,1.60986517,2677.9,2677.8,6.73437]
[1727511747539,0.05534076,2677.9,2677.8,6.73437]
[1727511747943,1.60956052,2677.9,2677.8,6.73437]
[1727511748154,1.60950859,2677.9,2677.8,6.73437]
[1727511749037,0.05534076,2677.9,2677.8,7.53217]
[1727511749245,1.60950859,2677.9,2677.8,7.53217]
[1727511750852,1.60950859,2677.9,2677.8,6.73437]
[1727511753052,1.60950859,2677.9,2677.8,7.53217]
[1727511753257,1.22133425,2677.9,2677.8,8.57906]
[1727511753483,1.22135346,2677.9,2677.8,8.57906]
[1727511754273,0.05534076,2677.9,2677.8,8.57906]
[1727511755064,0.0615866,2678.0,2677.9,3.0]
[1727511755235,0.0615866,2678.0,2677.9,10.56356242]
[1727511755435,0.0615866,2678.0,2677.9,10.48889298]
[1727511756672,0.11518765,2678.0,2677.9,10.48889298]
[1727511756872,0.0615866,2678.0,2677.9,10.48889298]
[1727511761455,0.11524005,2678.0,2677.9,10.48889298]
[1727511764777,0.11524005,2678.0,2677.9,8.92028027]
[1727511764778,1.28125275,2678.0,2677.9,8.92028027]
[1727511764951,1.28125275,2678.0,2677.9,6.73426]
[1727511773472,0.11524005,2678.0,2677.9,9.16064691]
[1727511773660,0.11524005,2678.0,2677.9,9.08597271]
[1727511773865,0.11524005,2678.0,2677.9,10.74145998]
[1727511774066,0.0615866,2678.0,2677.9,10.74145998]
[1727511776985,0.0615866,2678.0,2677.9,8.38974727]
[1727511777179,0.0615866,2678.0,2677.9,6.73426]
[1727511777396,0.11283485,2678.0,2677.9,6.73426]
[1727511780875,0.11283485,2678.0,2677.9,8.30287271]
[1727511781686,0.8906189,2678.0,2677.9,8.30287271]
[1727511782018,0.11283485,2678.0,2677.9,8.30287271]
[1727511782324,0.89062293,2678.0,2677.9,8.30287271]
[1727511782616,0.89062293,2678.0,2677.9,9.95835998]
[1727511788240,0.11283485,2678.0,2677.9,9.95835998]
[1727511788430,0.11283485,2678.0,2677.9,10.74565998]
[1727511788832,0.89062293,2678.0,2677.9,10.74565998]
[1727511793996,1.55416783,2678.2,2677.9,10.74565998]
[1727511793997,0.77778808,2678.2,2678.1,4.3319]
[1727511794159,0.77778808,2678.4,2678.3,3.7819]
[1727511794479,0.77778808,2678.4,2678.3,10.34765898]
[1727511795287,0.82368501,2678.4,2678.3,10.34765898]
[1727511795438,0.04589693,2678.4,2678.3,10.34765898]
[1727511795642,0.04589693,2678.4,2678.3,10.89765898]
[1727511796255,0.77778808,2678.6,2678.5,7.51533]
[1727511796460,0.77778808,2678.7,2678.6,6.73329]
[1727511796681,0.77778808,2678.7,2678.6,8.30190271]
[1727511796992,1.1660127,2678.8,2678.7,6.73315]
[1727511797343,2.33466783,2678.9,2678.8,6.73301]
[1727511798997,2.38126106,2678.9,2678.8,6.73301]
[1727511801668,1.99358909,2678.9,2678.8,6.73301]
[1727511801865,1.21308909,2678.9,2678.8,6.73301]
[1727511802066,1.21308909,2678.9,2678.8,8.46428725]
[1727511802275,1.21308909,2678.9,2678.8,8.38963627]
[1727511802481,0.04659323,2678.9,2678.8,8.38963627]
[1727511802765,0.04659323,2678.9,2678.8,9.95824898]
[1727511802995,0.77754419,2679.1,2678.8,6.22523898]
[1727511803206,1.16649586,2679.2,2679.1,6.73259]
[1727511803207,0.77754419,2679.2,2679.1,6.73259]
[1727511804610,1.16649586,2679.6,2679.4,3.73217]
[1727511804808,1.16649586,2679.9,2679.8,6.73162]
[1727511805122,1.16649586,2679.9,2679.8,8.30023271]
[1727511805529,1.16649586,2680.0,2679.9,6.73148]
[1727511806023,1.20903919,2680.0,2679.9,6.73148]
[1727511806523,0.04254333,2680.0,2679.9,6.73148]
[1727511806729,0.04254333,2680.0,2679.9,6.80609934]
[1727511807823,1.91979586,2680.2,2680.1,6.7312]
[1727511809331,0.7533,2680.2,2680.1,6.7312]
[1727511809628,0.79656573,2680.2,2680.1,6.7312]
[1727511809843,0.04326573,2680.2,2680.1,7.8520705]
[1727511810022,0.7902,2680.3,2680.2,6.73106]
[1727511810725,0.83390818,2680.3,2680.2,6.73106]
[1727511813802,0.83390818,2680.3,2680.2,6.80567429]
[1727511814025,0.83390818,2680.3,2680.2,6.73106]
[1727511816111,0.7902,2680.2,2679.6,3.73189]
[1727511816384,4.18519609,2679.9,2679.6,3.73189]
[1727511816499,0.77374021,2679.7,2679.6,3.73189]
[1727511816700,0.77374021,2679.7,2679.3,3.73223]
[1727511816701,0.7902,2679.6,2679.3,3.73223]
[1727511816900,1.56394021,2679.5,2679.2,3.73232]
[1727511817124,1.60725105,2679.5,2679.2,3.73232]
[1727511817312,1.95081031,2679.3,2679.1,3.73257]
[1727511817514,0.77353116,2679.2,2679.1,3.73257]
[1727511817737,0.81667916,2679.2,2679.1,3.73257]
[1727511818839,0.043148,2679.2,2679.1,6.73257]
[1727511819004,1.56373116,2679.3,2679.1,3.0]
[1727511819205,0.7902,2679.3,2679.2,3.73245]
[1727511819525,1.95081031,2679.3,2679.2,3.73245]
[1727511819724,0.7902,2679.3,2679.2,3.73245]
[1727511820322,1.95081031,2679.3,2679.2,3.73245]
[1727511820516,1.99326766,2679.3,2679.2,3.73245]
[1727511820721,0.83265735,2679.3,2679.2,3.73245]
[1727511822351,1.99326766,2679.3,2679.2,3.73245]
[1727511823880,1.60679288,2679.3,2679.2,3.73245]
[1727511824612,0.04245735,2679.3,2679.2,3.73245]
[1727511824811,0.04245735,2679.3,2679.2,4.85359351]
[1727511825124,0.77413553,2679.5,2679.4,3.73217]
[1727511825309,1.56433553,2679.6,2679.5,3.0]
[1727511825512,1.56433553,2679.6,2679.5,6.73203]
[1727511827967,1.60607308,2679.6,2679.5,6.73203]
[1727511829632,0.83193755,2679.6,2679.5,6.73203]
[1727511829851,1.60674225,2679.6,2679.5,6.73203]
[1727511830521,0.83193755,2679.6,2679.5,6.73203]
[1727511831420,1.99254786,2679.6,2679.5,6.73203]
[1727511833367,1.99254786,2679.6,2679.5,3.0]
[1727511833561,2.38610538,2679.6,2679.5,3.0]
[1727511833759,2.38610538,2679.6,2679.4,3.73217]
[1727511833922,1.16290276,2679.5,2679.4,3.73217]
[1727511834116,1.16290276,2679.5,2679.3,3.0]
[1727511834117,1.55416783,2679.5,2679.3,3.0]
[1727511834317,1.55416783,2679.5,2678.8,11.21291]
[1727511834318,0.7682,2679.3,2678.8,11.21291]
[1727511834522,1.54335329,2678.9,2678.8,11.21291]
[1727511834823,1.97078968,2678.9,2678.8,3.73291]
[1727511835025,1.97078296,2678.9,2678.8,3.73291]
[1727511835827,1.97078296,2678.9,2678.8,6.73291]
[1727511837428,0.80800179,2678.9,2678.8,6.73291]
[1727511838968,2.35830837,2678.9,2678.8,6.73291]
[1727511840459,1.97136729,2678.9,2678.8,6.73291]
[1727511840660,2.35830837,2678.9,2678.8,6.73291]
[1727511842138,0.80800179,2678.9,2678.8,6.73291]
[1727511842465,2.35830837,2678.9,2678.8,6.73291]
[1727511842689,0.80800179,2678.9,2678.8,6.73291]
[1727511844562,1.97100717,2678.9,2678.8,6.73291]
[1727511844769,0.80800179,2678.9,2678.8,6.73291]
[1727511844966,2.35830837,2678.9,2678.8,6.73291]
[1727511845292,0.80800179,2678.9,2678.8,6.73291]
[1727511845495,2.35830837,2678.9,2678.7,3.73314]
[1727511846493,2.35830837,2678.9,2678.4,3.7335]
[1727511846494,1.55030658,2678.8,2678.4,3.7335]
[1727511846701,1.55030658,2678.8,2678.3,3.73362]
[1727511846702,0.7682,2678.4,2678.3,3.73362]
[1727511846997,2.31842315,2678.4,2678.3,3.73362]
[1727511847963,0.7682,2678.4,2678.3,3.73362]
[1727511848180,1.93011667,2678.4,2678.3,3.73362]
[1727511849695,1.96908171,2678.4,2678.3,3.73362]
[1727511850095,0.81333885,2678.4,2678.3,3.73362]
[1727511854306,0.81333885,2678.4,2678.2,3.73384]
[1727511854307,0.03896504,2678.4,2678.2,3.73384]
[1727511854477,0.77413731,2678.3,2678.2,6.73377]
[1727511854676,0.81257496,2678.3,2678.2,6.73377]
[1727511855204,0.81257496,2678.3,2678.0,3.73403]
[1727511855205,0.8328,2678.2,2678.0,3.73403]
[1727511855366,0.03837357,2678.1,2678.0,10.46806]
[1727511855561,0.81245409,2678.1,2678.0,10.46806]
[1727511855902,0.81245409,2678.1,2678.0,6.73403]
[1727511857468,0.03837357,2678.1,2678.0,6.73403]
[1727511857996,0.81245409,2678.1,2678.0,6.73403]
[1727511860206,0.03837357,2678.1,2678.0,6.73403]
[1727511860501,1.20029024,2678.1,2678.0,6.73403]
[1727511860676,0.03837357,2678.1,2678.0,6.73403]
[1727511860881,1.20029024,2678.1,2678.0,6.73403]
[1727511861479,0.03837357,2678.1,2678.0,6.73403]
[1727511863474,1.20113785,2678.1,2678.0,6.73403]
[1727511863670,0.03837357,2678.1,2678.0,6.73403]
[1727511864574,1.20100952,2678.1,2678.0,6.73403]
[1727511864773,0.03837357,2678.1,2678.0,6.73403]
[1727511865212,1.20100943,2678.1,2678.0,6.73403]
[1727511872705,0.03837357,2678.1,2678.0,6.73403]
[1727511873507,1.58859672,2678.1,2678.0,6.73403]
[1727511874619,1.59421631,2678.1,2678.0,6.73403]
[1727511876403,1.59421631,2678.1,2678.0,3.73403]
[1727511876608,1.98106592,2678.1,2677.9,3.73425]
[1727511876805,1.55166957,2678.0,2677.9,6.73425]
[1727511877004,1.58708032,2678.0,2677.9,6.73425]
[1727511877553,0.03541075,2678.0,2677.9,10.4685]
[1727511877912,1.5876027,2678.0,2677.9,10.4685]
[1727511878255,0.03541075,2678.0,2677.9,10.4685]
[1727511878611,1.97499772,2678.0,2677.9,10.4685]
[1727511880274,1.97723424,2678.0,2677.9,10.4685]
[1727511881755,0.03541075,2678.0,2677.9,10.4685]
[1727511889075,0.03541075,2678.0,2677.9,6.73425]
[1727511889279,2.36709485,2678.0,2677.9,6.73425]
[1727511889986,2.36910285,2678.0,2677.9,6.73425]
[1727511891342,2.37075516,2678.0,2677.9,6.73425]
[1727511891590,0.03541075,2678.0,2677.9,6.73425]
[1727511892028,2.37078467,2678.0,2677.9,6.73425]
[1727511892201,0.03541075,2678.0,2677.9,6.73425]
[1727511892400,0.03541075,2678.0,2677.9,7.52605]
[1727511893013,0.03541075,2678.0,2677.9,6.73425]
[1727511893248,2.72826037,2678.1,2677.9,6.73425]
[1727511893543,2.76603544,2678.1,2677.9,6.73425]
[1727511895038,2.76603544,2678.1,2678.0,3.73412]
[1727511897552,2.72826037,2678.1,2678.0,3.73412]
[1727511897850,2.76603544,2678.1,2678.0,3.73412]
[1727511898544,0.8143,2678.0,2677.5,0.7918]
[1727511898751,0.8143,2678.0,2677.8,6.7344]
[1727511898752,2.72674989,2677.9,2677.8,6.7344]
[1727511899055,2.72666015,2677.9,2677.8,6.7344]
[1727511899420,2.72666015,2677.9,2677.7,6.73451]
[1727511900451,2.72666015,2677.9,2677.8,6.7344]
[1727511902246,1.46338417,2677.9,2677.7,3.73453]
[1727511902461,1.46338417,2677.9,2677.6,3.73456]
[1727511902462,2.72737531,2677.8,2677.6,3.73456]
[1727511902959,2.72737531,2677.7,2677.3,7.48585]
[1727511903157,2.72737531,2677.7,2677.3,3.73502]
[1727511903158,4.29655865,2677.5,2677.3,3.73502]
[1727511903560,4.19010118,2677.4,2677.3,3.73502]
[1727511903763,2.72671701,2677.4,2677.3,3.73502]
[1727511904260,4.29655865,2677.5,2677.1,4.48605]
[1727511904428,4.29655865,2677.5,2677.2,3.73512]
[1727511904754,4.29655865,2677.5,2677.2,3.0]
[1727511904957,4.29655865,2677.5,2677.3,3.73509]
[1727511905824,4.29655865,2677.5,2677.1,3.73535]
[1727511906026,2.33362727,2677.2,2677.1,6.73535]
[1727511906264,3.79701144,2677.3,2677.1,6.73535]
[1727511906419,1.46338417,2677.2,2676.9,3.73556]
[1727511906742,2.33267788,2677.0,2676.9,3.0]
[1727511906921,0.7908,2677.2,2676.9,3.0]
[1727511906922,3.51208682,2677.2,2676.9,3.0]
[1727511907116,2.33128075,2677.0,2676.9,3.0]
[1727511907428,1.56984164,2677.1,2676.8,3.73571]
[1727511907630,2.33122167,2676.9,2676.8,6.73571]
[1727511908141,3.79460584,2677.0,2676.8,6.73571]
[1727511908447,2.33122167,2677.0,2676.8,6.73571]
[1727511909158,2.33122167,2677.0,2676.9,3.73566]
[1727511909320,2.33122167,2677.1,2676.9,3.73566]
[1727511910628,3.12202167,2677.2,2676.9,3.73566]
[1727511911036,4.58540584,2677.2,2676.9,3.73566]
[1727511911245,3.12202167,2677.2,2676.9,3.73566]
[1727511911468,3.11869663,2677.2,2676.9,3.73566]
[1727511911640,1.93987828,2677.0,2676.9,3.73566]
[1727511911856,4.5820808,2677.2,2676.9,3.73566]
[1727511912062,3.11869663,2677.2,2676.9,3.73566]
[1727511912455,3.11869663,2677.2,2676.8,6.73571]
[1727511912456,1.56984164,2677.1,2676.8,6.73571]
[1727511912642,1.93941649,2676.9,2676.8,10.47143]
[1727511912877,1.93941649,2676.9,2676.8,6.73571]
[1727511914138,1.93941649,2677.0,2676.8,6.73571]
[1727511914684,1.93941649,2677.0,2676.9,3.73566]
[1727511916245,1.93830817,2677.0,2676.9,3.73566]
[1727511916457,1.93830817,2677.1,2676.9,3.73566]
[1727511916677,1.93830817,2677.0,2676.9,3.73566]
[1727511917080,1.93830817,2677.1,2676.9,4.52866]
[1727511917249,1.55029259,2677.0,2676.9,4.52866]
[1727511917457,1.93830817,2677.1,2676.9,4.52866]
[1727511917636,1.55030032,2677.0,2676.9,0.793]
[1727511917838,2.75350817,2677.0,2676.8,3.73571]
[1727511918232,1.55005025,2676.9,2676.8,3.73571]
[1727511922254,2.36525025,2677.0,2676.9,3.73566]
[1727511922582,2.36468884,2677.0,2676.9,3.73566]
[1727511922785,3.50814981,2677.1,2676.9,3.73566]
[1727511922944,1.93830817,2677.1,2676.9,3.73566]
[1727511923480,1.54935375,2677.0,2676.9,3.73566]
[1727511923686,1.549358,2677.0,2676.9,3.73566]
[1727511923992,1.54933851,2677.0,2676.9,3.73566]
[1727511924283,1.93830817,2677.1,2676.9,3.73566]
[1727511924898,1.54929874,2677.0,2676.9,3.73566]
[1727511925038,1.93830817,2677.1,2676.9,3.73566]
[1727511925258,1.54926963,2677.0,2676.9,3.73566]
[1727511926989,1.54926522,2677.0,2676.9,3.73566]
[1727511927196,1.93658284,2677.1,2676.9,3.73566]
[1727511927709,1.54930555,2677.0,2676.9,3.73566]
[1727511927865,1.93658284,2677.1,2676.9,3.73566]
[1727511928063,1.54928657,2677.0,2676.9,3.73566]
[1727511928290,1.93658284,2677.1,2676.9,3.73566]
[1727511928496,1.54931664,2677.0,2676.9,3.73566]
[1727511928694,1.54960537,2677.2,2677.1,3.73538]
[1727511928880,1.16211931,2677.2,2677.1,7.52838]
[1727511929095,1.16211931,2677.3,2677.2,7.52824]
[1727511929265,1.16211931,2677.4,2677.3,3.7351]
[1727511929872,1.54960537,2677.5,2677.3,3.7351]
[1727511930111,1.54960537,2677.5,2677.4,3.73496]
[1727511930407,1.93658284,2677.6,2677.4,3.73496]
[1727511930561,1.54987734,2677.5,2677.4,3.73496]
[1727511930891,1.54983927,2677.5,2677.4,3.73496]
[1727511931205,1.93658284,2677.6,2677.4,3.73496]
[1727511932302,1.93658284,2677.5,2677.4,3.73496]
[1727511932997,1.55017322,2677.6,2677.5,3.0]
[1727511933195,1.93658284,2677.7,2677.6,6.73468]
[1727511933196,1.55042603,2677.7,2677.6,6.73468]
[1727511933364,1.55045365,2677.7,2677.6,6.73468]
[1727511933699,1.55045365,2677.7,2676.9,4.482665]
[1727511933904,1.55045365,2677.7,2677.3,3.73503]
[1727511933905,1.55045365,2677.4,2677.3,3.73503]
[1727511934206,1.93658284,2677.5,2677.4,3.73496]
[1727511934706,1.93805029,2677.5,2677.4,3.73496]
[1727511934863,1.93805029,2677.6,2677.4,3.73496]
[1727511935060,1.93805029,2677.5,2677.3,6.73509]
[1727511935260,1.55054559,2677.4,2677.3,6.73509]
[1727511935469,1.55064856,2677.4,2677.3,6.73509]
[1727511935776,1.93805029,2677.5,2677.4,3.73496]
[1727511935972,1.93805029,2677.5,2677.3,6.7351]
[1727511936177,1.93805029,2677.5,2677.4,3.73496]
[1727511936962,1.93857865,2677.5,2677.4,3.73496]
[1727511937764,1.55113853,2677.5,2677.4,7.93535018]
[1727511937962,0.77567336,2677.6,2677.5,7.51332]
[1727511938177,0.77567336,2677.6,2677.5,10.40716282]
[1727511938805,1.16347503,2677.7,2677.5,10.40716282]
[1727511938806,1.55113853,2677.8,2677.7,3.73454]
[1727511939005,1.55113853,2677.8,2677.7,6.73454]
[1727511941721,1.93939574,2677.9,2677.8,6.7344]
[1727511943986,1.93974925,2677.9,2677.8,6.7344]
[1727511946285,1.93974925,2678.0,2677.9,3.73426]
[1727511946630,1.93971933,2678.0,2677.9,3.73426]
[1727511946923,0.00561959,2678.1,2677.9,3.73426]
[1727511948331,0.00561959,2678.1,2677.8,6.73432]
[1727511948622,1.9394474,2677.9,2677.8,6.73432]
[1727511948928,6.25121456,2678.0,2677.6,3.73461]
[1727511949227,1.56984164,2677.8,2677.4,3.73493]
[1727511949395,1.56984164,2677.8,2677.4,7.46981]
[1727511949396,1.93916348,2677.6,2677.4,7.46981]
[1727511949602,1.93916348,2677.5,2677.4,3.73488]
[1727511950323,0.7649,2677.7,2677.4,3.73488]
[1727511950324,1.93916348,2677.6,2677.5,3.73482]
[1727511951022,1.93912387,2677.6,2677.5,3.7347]
[1727511951223,1.93908678,2677.6,2677.5,3.7347]
[1727511951392,0.81490006,2677.7,2677.5,3.7347]
[1727511951926,0.7649,2677.7,2677.4,7.46973]
[1727511952128,1.93907323,2677.5,2677.4,7.46973]
[1727511952328,0.7649,2677.7,2677.5,3.73482]
[1727511952329,1.93907323,2677.6,2677.5,3.73482]
[1727511952491,1.93907323,2677.6,2677.5,0.8074]
[1727511952492,1.93905629,2677.6,2677.5,0.8074]
[1727511952687,1.93905629,2677.6,2677.5,4.54222]
[1727511953341,1.93915404,2677.6,2677.5,4.54222]
[1727511955367,1.93915404,2677.7,2677.6,3.73468]
[1727511960436,1.93915404,2677.8,2677.6,3.73468]
[1727511960641,2.32698485,2678.0,2677.7,3.73454]
[1727511960842,1.93963365,2677.8,2677.7,3.73445]
[1727511961152,2.32698485,2678.0,2677.7,3.73445]
[1727511961358,2.32698485,2677.9,2677.6,3.7346]
[1727511961603,1.93965986,2677.7,2677.6,3.7346]
[1727511961759,2.32698485,2677.9,2677.6,3.7346]
[1727511962064,1.93971117,2677.7,2677.6,3.7346]
[1727511962218,2.32698485,2677.9,2677.6,3.7346]
[1727511962937,1.93982973,2677.7,2677.6,3.73468]
[1727511963143,2.32698485,2677.9,2677.6,3.73468]
[1727511964180,1.94001312,2677.7,2677.6,3.73468]
[1727511964681,2.32698485,2677.9,2677.6,3.73468]
[1727511965539,2.32698485,2677.8,2677.6,3.73468]
[1727511966630,2.32698485,2677.9,2677.7,3.73454]
[1727511967177,2.32698485,2677.8,2677.7,3.73454]
[1727511967381,2.32698485,2677.8,2677.5,8.27695]
[1727511967556,2.32698485,2677.8,2677.6,3.73458]
[1727511969165,2.32698485,2677.7,2677.6,3.73458]
[1727511970587,2.33047305,2677.7,2677.5,4.54214]
[1727511971105,2.33047305,2677.7,2677.5,8.27689]
[1727511971804,2.33047305,2677.7,2677.6,3.73468]
[1727511972008,2.33047305,2677.7,2677.5,4.54214]
[1727511972169,2.33047305,2677.7,2677.6,3.73468]
[1727511972498,2.71888523,2677.9,2677.6,3.73468]
[1727511973061,2.71888523,2677.8,2677.6,3.73468]
[1727511973303,2.71888523,2677.9,2677.6,3.73468]
[1727511973866,2.71888523,2677.8,2677.6,3.73468]
[1727511974068,2.71888523,2677.9,2677.7,3.73454]
[1727511974268,2.71888523,2677.8,2677.7,3.73454]
[1727511974471,2.71888523,2677.8,2677.6,3.73468]
[1727511974710,2.71888523,2677.8,2677.7,3.73454]
[1727511975507,2.72236432,2677.8,2677.7,3.73454]
[1727511976063,2.72236432,2677.8,2677.6,3.73468]
[1727511976372,2.72236432,2677.8,2677.6,7.46929]
[1727511976606,2.72236432,2677.8,2677.7,3.73454]
[1727511976771,2.72236432,2677.8,2677.6,7.46921]
[1727511977093,2.72236432,2677.8,2677.7,3.73454]
[1727511977711,2.72236432,2677.9,2677.7,3.73454]
[1727511977866,2.72236432,2677.8,2677.7,3.73454]
[1727511978704,2.72236432,2677.9,2677.7,3.73454]
[1727511978905,2.72236432,2677.8,2677.7,3.73454]
[1727511980106,2.72286721,2677.8,2677.7,3.73454]
[1727511985110,3.2163869,2678.0,2677.7,3.73454]
[1727511986895,2.72387756,2677.8,2677.7,3.73454]
[1727511987228,3.2163869,2678.0,2677.7,3.73454]
[1727511987995,3.2163869,2678.0,2677.7,3.73446]
[1727511989434,3.21801817,2678.0,2677.7,3.73446]
[1727511990396,3.21801817,2678.0,2677.8,3.7343]
[1727511990594,2.72460992,2677.9,2677.8,3.7343]
[1727511993146,3.22363776,2678.1,2677.8,3.7343]
[1727511993301,2.72475425,2677.9,2677.8,3.7343]
[1727511993507,2.72469319,2677.9,2677.8,3.7343]
[1727511993746,2.72465984,2677.9,2677.8,3.7343]
[1727511994037,2.72459739,2677.9,2677.8,3.7343]
[1727511994240,3.22363776,2678.1,2677.8,3.7343]
[1727511994241,3.2242245,2678.1,2677.8,3.7343]
[1727511994553,3.2242245,2678.1,2678.0,3.73412]
[1727511994554,1.53270202,2678.1,2678.0,3.73412]
[1727511994758,0.00561959,2678.1,2678.0,4.55162]
[1727511995049,3.96705093,2678.1,2678.0,4.55162]
[1727511996603,3.96705093,2678.1,2678.0,3.73412]
[1727511997026,3.96615714,2678.1,2678.0,3.73412]
[1727511998444,3.96615714,2678.1,2677.9,3.73419]
[1727511998655,1.23714857,2678.0,2677.9,7.46837]
[1727511999010,1.23714857,2678.0,2677.9,3.73418]
[1727512001070,1.23714857,2678.0,2677.8,4.55189]
[1727512001222,1.23714857,2677.9,2677.8,8.28619]
[1727512001423,1.23714857,2677.9,2677.8,7.5518]
[1727512002256,1.23714857,2677.9,2677.7,6.73454]
[1727512002557,1.23714857,2677.8,2677.7,3.0]
[1727512002765,1.23714857,2677.8,2677.4,3.73487]
[1727512002766,1.28714863,2677.8,2677.5,3.73477]
[1727512002931,1.23714857,2677.7,2677.5,7.46954]
[1727512003120,1.23714857,2677.6,2677.5,3.73477]
[1727512007629,3.57056898,2677.6,2677.5,3.73477]
[1727512008365,3.57038482,2677.6,2677.5,3.73477]
[1727512009261,1.23714857,2677.6,2677.5,6.73477]
[1727512009473,2.33338135,2677.7,2677.6,6.73468]
[1727512009769,1.23629666,2677.7,2677.6,7.53578]
[1727512010067,2.33338135,2677.9,2677.8,6.7344]
[1727512010254,2.33338135,2677.9,2677.8,7.5355]
[1727512010567,3.56969694,2677.9,2677.8,7.5355]
[1727512010778,2.33338135,2677.9,2677.8,7.5355]
[1727512011077,1.23631559,2677.9,2677.8,9.17566354]